Cogmind - Beta 9.6 @@@ ROGUE MODE // 2020.06.13 @ 21:17:30 Player: moep Result: Destroyed by G-34 Mercenary with Small Laser Performance ------------- Evolutions (1) 500 Regions Visited (2) 400 Robots Destroyed (10) 50 Value Destroyed (328) 328 Prototype IDs (0) 0 Alien Tech Used (0) 0 Bonus (0) 0 TOTAL SCORE: 1278 Bonus ------- None Cogmind --------- Core Integrity 0/400 Matter 300/300 Energy 100/100 System Corruption 8% Temperature Cool (6) Movement Core (400) Ox7 Location -9/Materials Parts ------- > --- POWER (2) -------- (None) > --- PROPULSION (2) --- (None) > --- UTILITY (3) ------ Medium Storage Unit Large Storage Unit > --- WEAPON (2) ------- (None) > --- INVENTORY (14) --- Improved Ion Engine Aluminum Leg Aluminum Leg Wheel Wheel Heat Sink Medium Battery (200) Shield Generator Shield Generator Heavy EM Pulse Gun Medium Laser Medium Laser Heavy Assault Rifle Grenade Launcher Peak State ------------ > --- POWER ------------ Ion Engine Improved Ion Engine > --- PROPULSION ------- Aluminum Leg Aluminum Leg > --- UTILITY ---------- Medium Storage Unit Large Storage Unit Shield Generator > --- WEAPON ----------- Particle Gun Beam Cannon > --- INVENTORY -------- Light Ion Engine Aluminum Leg Aluminum Leg Wheel Wheel Medium Battery Shield Generator Shield Generator Heavy EM Pulse Gun Medium Laser Medium Laser Small Laser Heavy Assault Rifle Grenade Launcher [Rating: 13] Favorites ----------- Power Ion Engine Engine Ion Engine Propulsion Aluminum Leg Leg Aluminum Leg Wheel Wheel Utility Medium Storage Unit Device Shield Generator Storage Medium Storage Unit Weapon Beam Cannon Energy Gun Particle Gun Energy Cannon Beam Cannon Ballistic Gun Assault Rifle Build | -11 -10 -9 ------- Run | Scr Mat Mat Slots Evolved 2 | . . 2 Power 1 | . . 1 Propulsion . | . . . Utility 1 | . . 1 Weapon . | . . . Parts Attached 21 | 8 6 7 Power 5 | 1 1 3 Engine 5 | 1 1 3 Core . | . . . Reactor . | . . . Propulsion 5 | 3 1 1 Treads . | . . . Leg 4 | 2 1 1 Wheel 1 | 1 . . Hover . | . . . Flight . | . . . Utility 5 | 1 3 1 Device 1 | . . 1 Storage 4 | 1 3 . Processor . | . . . Hackware . | . . . Protection . | . . . Artifact . | . . . Weapon 6 | 3 1 2 Energy Gun 4 | 2 . 2 Energy Cannon 1 | . 1 . Ballistic Gun 1 | 1 . . Ballistic Cannon . | . . . Launcher . | . . . Special Weapon . | . . . Impact Weapon . | . . . Slashing Weapon . | . . . Piercing Weapon . | . . . Special Melee Weapon . | . . . Unidentified Prototypes . | . . . Parts Lost 7 | . . 7 Power 2 | . . 2 Propulsion 2 | . . 2 Utility 1 | . . 1 Weapon 2 | . . 2 Highest Loss Streak 7 | . . 7 Average Slot Usage (%) 95 | . 99 93 Engine 18 | . 14 19 Leg 23 | . 28 21 Device 6 | . . 9 Storage 23 | . 27 22 Energy Gun 7 | . 11 6 Energy Cannon 8 | . 2 10 Ballistic Gun 6 | . 14 4 Naked Turns . | . . . Heaviest Build 44 | 11 34 44 Greatest Support 20 | 20 20 20 Greatest Overweight (x) 7 | . 1 7 Average Overweight (x) 1 | . . 1 Largest Inventory Capacity 14 | 6 14 14 Average Capacity 12 | 5 11 14 Most Carried 14 | 4 11 14 Average Carried 11 | 2 8 13 Final Capacity 14 | 6 14 14 Final Carried 14 | 4 11 14 Class Distribution -------------------- 87% | Mutant 12% | Scavenger-Mutant Dominant Class ---------------- Mutant | -10/Materials Mutant | -9/Materials Resources | -11 -10 -9 ----------- Run | Scr Mat Mat Matter Collected 479 | 216 167 96 Remotely . | . . . Salvage Created 411 | . 207 204 Parts 14 | . 6 8 Haulers Intercepted . | . . . Recyclers Shooed 1 | . . 1 Parts Field Recycled . | . . . Retrieved Matter . | . . . Parts Self-Destructed . | . . . Prevented . | . . . Kills | -11 -10 -9 ------- Run | Scr Mat Mat Combat Hostiles Destroyed 9 | . 5 4 Guns 4 | . 4 . Cannons 5 | . 1 4 Classes Destroyed 3 | . 1 2 Worker 1 | . . 1 Grunt 8 | . 5 3 Sentry 1 | . . 1 Best Kill Streak 2 | . 2 2 Combat Bots Only 2 | . 2 2 Max Kills in Single Turn 1 | . 1 1 Gunslinging . | . . . Exploded . | . . . Melee . | . . . Uniques/NPCs Destroyed . | . . . Combat | -11 -10 -9 -------- Run | Scr Mat Mat Damage Taken 1268 | . 217 1051 Core 449 | . 42 407 Absorbed by Shields 117 | . . 117 Core Remaining (%) 91 | 100 83 . Volleys Fired 38 | . 15 23 Largest 2 | . 2 2 Hottest 125 | . 80 125 Shots Fired 76 | . 30 46 Gun 49 | . 26 23 Cannon 27 | . 4 23 Launcher . | . . . Special . | . . . Kinetic 23 | . 15 8 Thermal 53 | . 15 38 Explosive . | . . . Electromagnetic . | . . . Robot Hit Streak 11 | . 11 8 Robot Miss Streak 5 | . 2 5 Penetration Max . | . . . Secondary Targets 1 | . 1 . Max Gunslinging Chain 1 | . 1 . Shots Hit Robots 40 | . 23 17 Core Hits 19 | . 9 10 Critical Hits . | . . . Critical Kills . | . . . Critical Parts Destroyed . | . . . Melee Attacks . | . . . Impact . | . . . Slashing . | . . . Piercing . | . . . Sneak Attacks . | . . . Combat Hostiles . | . . . Follow-up Attacks . | . . . Damage Inflicted 630 | . 311 319 Guns 329 | . 242 87 Cannons 282 | . 69 213 Explosions . | . . . Melee . | . . . Ramming 19 | . . 19 Kinetic 183 | . 155 28 Thermal 428 | . 156 272 Explosive . | . . . Electromagnetic . | . . . Impact . | . . . Slashing . | . . . Piercing . | . . . Highest Corruption 8 | . . 8 Average Corruption 4 | . . 4 Corruption Purged . | . . . Effects 5 | . . 5 Message Errors 2 | . . 2 Matter Fused 1 | . . 1 Energy Discharges 1 | . . 1 Data Loss (minor) 1 | . . 1 Overload Shots . | . . . Overflow Damage . | . . . Projectiles . | . . . Explosions . | . . . Melee . | . . . Knockbacks . | . . . Impact . | . . . Kinetic . | . . . Secondary . | . . . Self-Inflicted Damage . | . . . Shots . | . . . Rammed 9 | . . 9 Targets Rammed 12 | . . 12 Kicked 3 | . . 3 Crushed . | . . . Highest Temperature 552 | . 162 552 Average Temperature 142 | . 60 176 Received Heat Transfer 500 | . 120 380 Effects 15 | . . 15 Shutdowns 4 | . . 4 Interference 2 | . . 2 Short Circuit 1 | . . 1 Damage (major) 7 | . . 7 Damage (core) 1 | . . 1 Siege Activations . | . . . Robots Corrupted . | . . . Combat Hostiles . | . . . Parts Fried . | . . . Impact Corruptions . | . . . Robots Melted . | . . . Combat Hostiles . | . . . Parts Melted 3 | . 1 2 Heat Transferred 999 | . 407 592 Parts Sabotaged . | . . . Parts Stolen . | . . . Parts Stripped . | . . . Power Chain Reactions . | . . . Missiles Intercepted . | . . . Alert | -11 -10 -9 ------- Run | Scr Mat Mat Peak Influence 160 | . 160 130 Average Influence 77 | . 88 79 Maximum Alert Level . | . . . Low Security (%) 100 | 100 100 100 Level 1 . | . . . Level 2 . | . . . Level 3 . | . . . Level 4 . | . . . Level 5 . | . . . High Security . | . . . Max Security . | . . . Squads Dispatched 4 | . 3 1 Investigation 2 | . 1 1 Extermination . | . . . Reinforcement 2 | . 2 . Assault . | . . . Garrison . | . . . Intercept . | . . . Construction Impeded . | . . . Haulers Reinforced . | . . . Stealth | -11 -10 -9 --------- Run | Scr Mat Mat Distress Signals 1 | . . 1 Communications Jammed . | . . . Distress Signals . | . . . Times Spotted 19 | . 8 11 Peak Tracking Total 4 | . 3 4 Tactical Retreats . | . . . Traps | -11 -10 -9 ------- Run | Scr Mat Mat Traps Triggered 4 | . 1 3 Indirectly . | . . . Trap Hack Attempts . | . . . Triggered . | . . . Disarmed . | . . . Reprogrammed . | . . . Reused . | . . . Traps Extracted . | . . . Installed . | . . . Triggered . | . . . Machines | -11 -10 -9 ---------- Run | Scr Mat Mat Machines Disabled 1 | . . 1 Max in Single Turn 1 | . . 1 Machines Sabotaged . | . . . Garrisons Compromised . | . . . Overloaded Fab Kills . | . . . Fab Network Shutdowns . | . . . Hacking | -11 -10 -9 --------- Run | Scr Mat Mat Machines Accessed . | . . . Terminals . | . . . Fabricators . | . . . Repair Stations . | . . . Recycling Units . | . . . Scanalyzers . | . . . Garrison Access . | . . . Total Hacks . | . . . Successful . | . . . Failed . | . . . Catastrophic . | . . . Database Lockouts . | . . . Manual . | . . . Terminals . | . . . Fabricators . | . . . Repair Stations . | . . . Recycling Units . | . . . Scanalyzers . | . . . Garrison Access . | . . . Terminal Hacks . | . . . Fabricator Hacks . | . . . Repair Station Hacks . | . . . Recycling Unit Hacks . | . . . Scanalyzer . | . . . Garrison Access Hacks . | . . . Unauthorized Hacks . | . . . Terminals . | . . . Fabricators . | . . . Repair Stations . | . . . Recycling Units . | . . . Scanalyzers . | . . . Garrison Access . | . . . Data Cores Recovered . | . . . Used . | . . . Hacking Detections . | . . . Full Trace Events . | . . . Feedback Events . | . . . Feedback Blocked . | . . . Robot Schematics Acquired . | . . . Robots Built . | . . . Matter . | . . . Time . | . . . Total Robot Build Rating . | . . . Part Schematics Acquired . | . . . Parts Built . | . . . Matter . | . . . Time . | . . . Total Part Build Rating . | . . . Parts Repaired . | . . . Time . | . . . Parts Recycled . | . . . Recycled Matter . | . . . Retrieved Matter . | . . . Retrieved Components . | . . . Parts Scanalyzed . | . . . Part Schematics Acquired . | . . . Parts Damaged . | . . . Bothacking | -11 -10 -9 ------------ Run | Scr Mat Mat Used RIF Installer . | . . . Robots Hacked . | . . . Non-combat . | . . . Combat . | . . . Robot Hacks Applied . | . . . Relay Couplers Released . | . . . Robots Rewired . | . . . Allies Hacked . | . . . Hacks Repelled . | . . . Allies | -11 -10 -9 -------- Run | Scr Mat Mat Total Allies . | . . . Largest Group . | . . . Highest-Rated Group . | . . . Highest-Rated Ally . | . . . Total Orders . | . . . Ally Attacks . | . . . Total Damage . | . . . Kills . | . . . Allies Corrupted . | . . . Allies Melted . | . . . Intel | -11 -10 -9 ------- Run | Scr Mat Mat Robot Analysis Total . | . . . Derelict Logs Recovered . | . . . Drone Launches . | . . . Drone Recoveries . | . . . Exploration | -11 -10 -9 ------------- Run | Scr Mat Mat Turns Passed 1156 | 64 319 773 Spaces Moved 596 | 43 171 382 Core 4 | 3 . 1 Treads . | . . . Legs 592 | 40 171 381 Wheels . | . . . Hover . | . . . Flight . | . . . Fastest Speed 50 | 50 120 150 Average Speed 152 | 115 138 162 Slowest Speed 400 | 120 150 400 Overloaded Moves . | . . . Propulsion Burnouts . | . . . Robots Hopped . | . . . Cave-ins Triggered . | . . . Exploration Rate (%) 19 | 4 30 25 Regions Visited 2 Branch Regions . Pre-discovered Areas . | . . . Known Exits Taken . | . . . Unknown Exits Taken 2 | 1 1 . Scrap Searched . | . . . Spaces Dug . | . . . Terrain Destroyed . | . . . Melee . | . . . Projectile . | . . . AOE . | . . . Actions | -11 -10 -9 --------- Run | Scr Mat Mat Total 738 | 54 221 463 Wait 46 | . 18 28 Move 594 | 42 170 382 Hop . | . . . Pick Up 16 | 2 8 6 Fast Attach 11 | 8 2 1 Attach 2 | . . 2 Detach 3 | 2 1 . Swap 8 | . 4 4 Drop 8 | . 3 5 Fire 38 | . 15 23 Melee . | . . . Ram 7 | . . 7 Kick 5 | . . 5 Crush . | . . . Escape Stasis . | . . . Rewire . | . . . Trap . | . . . Miscellaneous . | . . . Route ------- -11/Scrapyard -10/Materials (discovered 2 exits: *Mat / [*Min]) -9/Materials History --------- Turn | Location | Event 23 | -11/Scrapyard | Discovered new exit (range 16) 65 | -11/Scrapyard | Entered Materials 341 | -10/Materials | Build established: Mutant 343 | -10/Materials | Discovered new exit (range 3) 375 | -10/Materials | Discovered new exit (range 5) 384 | -10/Materials | Entered another Materials area 384 | -9/Materials | Evolved 2 slots: Power x1, Utility x1 1133 | -9/Materials | Core integrity fell below 50% 1149 | -9/Materials | Core integrity fell below 20% 1157 | -9/Materials | Destroyed by G-34 Mercenary with Small Laser Last Messages --------------- 01117_ Overheating: Ion Engine damaged (-4). 01117_ Overheating: Imp. Ion Engine damaged (-23). 01117_ Overheating: Aluminum Leg damaged (-18). 01117_ Overheating: Lrg. Storage Unit damaged (-102). 01118_ Beam Cannon destroyed. 01119_ Power failure, Ion Engine shutdown. 01122_ Broken Aluminum Leg destroyed. 01122_ Particle Gun destroyed. 01122_ System corrupted by crushing effect (+2). 01125_ Slammed into G-34 Mercenary. 01126_ Ion Engine destroyed. 01126_ Aluminum Leg destroyed. 01127_ Slammed into G-34 Mercenary. 01130_ Imp. Ion Engine destroyed. 01132_ 6H|YP0:O4203SG IZV FR=YHL>N1MRDLSCIA 01133_ Slammed into B-36 Bruiser. 01135_ U-05 Engineer lays Concrete. 01137_ Slammed into G-34 Mercenary. 01141_ Slammed into B-36 Bruiser. 01149_ Slammed into G-34 Mercenary. Map ----- +----------------------------------------------------+ | ????????????????????????????????????????????????? | | ????????????????????????????????????????????????? | | ????????????????????????????????????????????????? | | ????????????????????????????????????????????????? | | ????????????????????????????????????????????????? | | ????????????????????????????????????????????????? | | ????????????????????????????????????????????????? | | ????????????????????????????????????????????????? | | ????????????????????????????????????????????????? | | ????????????????????????????????????????????????? | | ????????????????????????????????????????????????? | | ????????????????????????????????????????????????? | | ????????? ??????????????????????????????????????? | | ???????? ????????????????????????????????????? | | ????????# ????????????????????????????????????? | | ???????## ????????????????????????????????????? | | ???????? ????????????????????????????????????? | | ???????? ????????????????????????????????????? | | ???????? ????????????????????????????????????? | | ????????? ????????????????????????????????????? | | ????????? ????????????????????##+##???????????? | | ?????????# #????????############# #???????????? | | ?????????# #????????# ! + #???????????? | | ?????????# #######??# """ # #???????????? | | ?????????# #??# """"" # #???????????? | | ?????????# #??# ""%@g% # #???????????? | | ########## #### %%bg" ! # #???????????? | | % +% %"" # +???????????? | | ##########+#####+#### u + #???????????? | | ?????????#%% ## ############## #???????????? | | ?????????#[*= ## #????????????# #???????????? | | ?????????# ## #????????????# #???????????? | | ???? ???# ## #????????????# #???????????? | | ??"" "???# ## #????????????# +???????????? | | """ ""??# ## #????????????# #???????????? | | """ ""??# ## #????????????# #???????????? | | """ ""??# ######????????????# #???????????? | | ??"" "???# #?????????????????? #???????????? | | ???? ???######?????????????????? +???????????? | | ????????########????????????????? #???????????? | | ????????# #????????????????? #???????????? | | ######### !#????????????????? #???????????? | | [%* + """ #????????????????? #???????????? | | ######### """ #????????????????? ????????????? | | ????????# """ #????????????????????????????????? | | ######### #????????????????????????????????? | | ########????????????????????????????????? | | #???????????????????????????????????????? | | #???????????????????????????????????????? | | !! #???????????????????????????????????????? | +----------------------------------------------------+ Best States ------------- Heat Dissipation 28 Energy Generation 17 Energy Capacity 415 Matter Stores 300 Matter Capacity 300 Sight Range 16 Terrain Scan Density 10 Evasion (%) 40 Item Schematics ----------------- None Robot Schematics ------------------ None Fabricated ------------ Nothing Alien Tech Used ----------------- None Achievements -------------- None Challenges ------------ None Game ------ Seed HoverProcessingCompactor Manual? 0 Play Time 00:20:58 Cumulative 6.9 hours Start 2020.06.13 @ 20:58:41 End 2020.06.13 @ 21:17:30 Sessions 1 Manual Loads 0 Difficulty Rogue Special Mode None Game No. 21 Rogue 21 Adventurer 0 Explorer 0 Win Type - Total 0 Types 0/0/0/0/0/0/0 Lore% 2 Gallery% 10 Achievement% 5 Wizard Run 0 Options --------- ASCII 1 Keyboard 1 Movement Numpad Keybinds 0 Fullscreen 1 Font 24/Terminus Map View 76x50 Tactical HUD 1 Map Filters NONE Filters NONE Steam 1 RUN: 54f5cf7b-89fa-4055-a829-fe9000beb017